{"text_format":"1","workbook":"xlsx","n_sheets":2,"sheets":["Лист1","Лист2"],"not_rendered":{"charts":0,"images":2,"macros":0,"external_links":0,"defined_names":2,"comments":0,"pivot_tables":0},"unopened":[],"bounds":{"document_bytes":16777216,"sheet_cells":100000,"rows_first":2000,"rows_last":500,"rows_between":2000,"halvings":0,"cell_chars":16384,"cell_head_chars":4096},"cells_cut":0,"cells_raw":0,"read":"whole","date_system":"1900"}

{"sheet":"Лист1","index":0,"n_rows":5,"n_cols":6,"rows_kept":5,"cut":false,"hidden":false,"merged":[]}
["Сушка_Верхняя_База","450мм, Siena, хром, AFF (Акция) СтА",1,{"$f":"INDEX(INDIRECT(A1),MATCH(B1,INDEX(INDIRECT(A1),,1),0),3)","v":12},null,"Здесь пример как реализовано через данные"]
[]
[]
["Первый элемент \"поле со списком\"","Первый элемент \"поле со списком\""]
[null,null,1,{"$f":"INDEX(INDIRECT(A5),MATCH(B5,INDEX(INDIRECT(A5),,1),0),3)","v":{"$error":"#REF!"}}]

{"sheet":"Лист2","index":1,"n_rows":22,"n_cols":6,"rows_kept":22,"cut":false,"hidden":false,"merged":[]}
["Сушка_Верхняя_База"]
["450мм, Siena, хром, AFF (Акция) СтА",10,{"$f":"B2*1.2","v":12}]
["600мм, Siena, хром, AFF (Акция) СтА",11,{"$f":"B3*1.2","v":13.2}]
["800мм, Siena, хром, AFF (Акция) СтА",12,14.399999999999999]
["900мм, Siena, хром, AFF (Акция) СтА",13,15.6]
["450мм, Siena, хром, AFF (Акция) СтА",14,16.8]
["Сушка 2-уровневая угловая в базу 600x600 BOYARD ",15,18,null,null,"диапазон"]
["Сушка 2-уровневая угловая 600x600мм 600x600 Кремона",16,19.2,null,null,{"$f":"A1","v":"Сушка_Верхняя_База"}]
["450мм, Partner Range, хром, Vibo",17,20.399999999999999,null,"не создавая диапазон",{"$f":"A17","v":"Сушка_Нижняя_База"}]
["600мм, Partner Range, хром, Vibo",18,21.599999999999998]
["900мм, Partner Range, хром, Vibo",19,22.8]
["Boyard 500",20,24]
["Boyard 600",21,25.2]
["Boyard 700",22,26.4]
["Boyard 800",23,27.599999999999998]
["Boyard 900",24,28.799999999999997]
["Сушка_Нижняя_База"]
["Сушка выдвижная Vibo в модуль на 600мм",25,30]
["Сушка выдвижная Sicilia, в модуль 600мм",26,31.2]
["56226 Сушилка в нижнюю базу 600 мм CARMA, с доводчиком, хром",27,32.4]
["56228 Сушилка в нижнюю базу 800 мм CARMA, с доводчиком, хром",28,33.6]
["56229 Сушилка в нижнюю базу 900 мм CARMA, с доводчиком, хром",29,34.799999999999997]